[Event "Titled Tuesday Blitz February 22 Late 2022"]
[White "Aradhya, Garg"]
[Black "Djokic, Mihailo"]
[WhiteFideId "25006746"]
[BlackFideId "976440"]
[WhiteElo "2169"]
[BlackElo "2008"]
[Result "0-1"]
[Round "06"]
[TimeControl "180+1"]
[Date "2022.02.23"]
[WhiteClock "0:00:03"]
[BlackClock "0:00:39"]

1. d4 {[%clk 0:03:00]}  Nf6 {[%clk 0:02:59]} 2. c4 {[%clk 0:03:01]}  g6 {[%clk 0:03:00]} 3. g3 {[%clk 0:03:00]}  Bg7 {[%clk 0:03:01]} 4. Bg2 {[%clk 0:03:01]}  O-O {[%clk 0:03:02]} 5. Nc3 {[%clk 0:03:01]}  d6 {[%clk 0:03:02]} 6. Nf3 {[%clk 0:03:01]}  Nc6 {[%clk 0:03:03]} 7. O-O {[%clk 0:03:01]}  a6 {[%clk 0:03:03]} 8. b3 {[%clk 0:02:59]}  Rb8 {[%clk 0:03:03]} 9. d5 {[%clk 0:02:59]}  Na5 {[%clk 0:03:03]} 10. Bg5 {[%clk 0:02:56]}  c5 {[%clk 0:03:02]} 11. dxc6 {[%clk 0:02:56]}  Nxc6 {[%clk 0:03:03]} 12. Rc1 {[%clk 0:02:56]}  h6 {[%clk 0:03:02]} 13. Be3 {[%clk 0:02:52]}  Bf5 {[%clk 0:02:58]} 14. Nd4 {[%clk 0:02:48]}  Nxd4 {[%clk 0:02:58]} 15. Bxd4 {[%clk 0:02:49]}  Qd7 {[%clk 0:02:54]} 16. Qd2 {[%clk 0:02:48]}  h5 {[%clk 0:02:52]} 17. Rfd1 {[%clk 0:02:46]}  Kh7 {[%clk 0:02:42]} 18. a4 {[%clk 0:02:38]}  Rfc8 {[%clk 0:02:40]} 19. Bxf6 {[%clk 0:02:28]}  Bxf6 {[%clk 0:02:40]} 20. Nd5 {[%clk 0:02:29]}  Qe6 {[%clk 0:02:38]} 21. Nb6 {[%clk 0:02:18]}  Rd8 {[%clk 0:02:33]} 22. Bd5 {[%clk 0:02:17]}  Qe5 {[%clk 0:02:33]} 23. Bf3 {[%clk 0:01:38]}  e6 {[%clk 0:02:28]} 24. a5 {[%clk 0:01:31]}  Qb2 {[%clk 0:02:22]} 25. Na4 {[%clk 0:01:30]}  Qxb3 {[%clk 0:02:20]} 26. Nb6 {[%clk 0:01:26]}  Bb2 {[%clk 0:02:16]} 27. Rb1 {[%clk 0:00:18]}  Bxb1 {[%clk 0:02:14]} 28. Rxb1 {[%clk 0:00:18]}  Bc3 {[%clk 0:02:15]} 29. Qd3 {[%clk 0:00:19]}  Qa2 {[%clk 0:02:09]} 30. Bxh5 {[%clk 0:00:19]}  Bxa5 {[%clk 0:02:03]} 31. Bf3 {[%clk 0:00:19]}  Qd2 {[%clk 0:01:57]} 32. Qe4 {[%clk 0:00:18]}  d5 {[%clk 0:01:52]} 33. cxd5 {[%clk 0:00:18]}  Bxb6 {[%clk 0:01:52]} 34. Rxb6 {[%clk 0:00:17]}  Rxd5 {[%clk 0:01:51]} 35. Qh4+ {[%clk 0:00:16]}  Kg7 {[%clk 0:01:50]} 36. Bxd5 {[%clk 0:00:16]}  Qd1+ {[%clk 0:01:50]} 37. Kg2 {[%clk 0:00:16]}  Qxd5+ {[%clk 0:01:51]} 38. e4 {[%clk 0:00:16]}  Qd4 {[%clk 0:01:49]} 39. Qf4 {[%clk 0:00:10]}  Qxb6 {[%clk 0:01:39]} 40. Qe5+ {[%clk 0:00:09]}  Kh7 {[%clk 0:01:36]} 41. Qxb8 {[%clk 0:00:09]}  Qc6 {[%clk 0:01:36]} 42. f3 {[%clk 0:00:07]}  b5 {[%clk 0:01:35]} 43. Qf4 {[%clk 0:00:06]}  Kg8 {[%clk 0:01:34]} 44. Qb8+ {[%clk 0:00:06]}  Kg7 {[%clk 0:01:34]} 45. Qe5+ {[%clk 0:00:04]}  f6 {[%clk 0:01:35]} 46. Qb8 {[%clk 0:00:05]}  Qd7 {[%clk 0:01:31]} 47. g4 {[%clk 0:00:05]}  g5 {[%clk 0:01:29]} 48. h4 {[%clk 0:00:03]}  gxh4 {[%clk 0:01:26]} 49. Kh3 {[%clk 0:00:03]}  a5 {[%clk 0:01:20]} 50. Kxh4 {[%clk 0:00:03]}  a4 {[%clk 0:01:20]} 51. g5 {[%clk 0:00:03]}  fxg5+ {[%clk 0:01:17]} 52. Kxg5 {[%clk 0:00:04]}  Qe7+ {[%clk 0:01:17]} 53. Kg4 {[%clk 0:00:04]}  e5 {[%clk 0:01:14]} 54. Qxb5 {[%clk 0:00:05]}  a3 {[%clk 0:01:14]} 55. Qa6 {[%clk 0:00:04]}  Kh7 {[%clk 0:01:08]} 56. Kh5 {[%clk 0:00:04]}  Qf7+ {[%clk 0:01:07]} 57. Kg5 {[%clk 0:00:04]}  Qf4+ {[%clk 0:01:07]} 58. Kh5 {[%clk 0:00:04]}  Qxf3+ {[%clk 0:01:07]} 59. Kg5 {[%clk 0:00:05]}  Qf4+ {[%clk 0:01:07]} 60. Kh5 {[%clk 0:00:05]}  Qf3+ {[%clk 0:01:00]} 61. Kg5 {[%clk 0:00:05]}  Qg2+ {[%clk 0:00:57]} 62. Kf5 {[%clk 0:00:04]}  a2 {[%clk 0:00:48]} 63. Qa7+ {[%clk 0:00:04]}  Kh6 {[%clk 0:00:48]} 64. Qb6+ {[%clk 0:00:04]}  Kh5 {[%clk 0:00:46]} 65. Qa6 {[%clk 0:00:04]}  Qf3+ {[%clk 0:00:44]} 66. Kxe5 {[%clk 0:00:02]}  Qc3+ {[%clk 0:00:43]} 67. Kf5 {[%clk 0:00:03]}  Qf3+ {[%clk 0:00:38]} 68. Ke5 {[%clk 0:00:02]}  Qg3+ {[%clk 0:00:38]} 69. Kf5 {[%clk 0:00:02]}  Qg5+ {[%clk 0:00:38]} 70. Ke6 {[%clk 0:00:02]}  Qg6+ {[%clk 0:00:38]} 71. Kd5 {[%clk 0:00:01]}  Qxa6 {[%clk 0:00:39]} 72. e5 {[%clk 0:00:01]}  a1=Q {[%clk 0:00:39]} 73. e6 {[%clk 0:00:02]}  Q1a2+ {[%clk 0:00:39]} 74. Ke4 {[%clk 0:00:03]}  Q2xe6+ {[%clk 0:00:40]} 75. Kd4 {[%clk 0:00:03]}  Qac4# {[%clk 0:00:39]} 0-1


[Site "https://www.chess.com"]

[Event "Titled Tuesday Blitz February 22 Late 2022"]
[White "Aukhatov, Roman"]
[Black "Wan, Joseph"]
[WhiteFideId "44150768"]
[BlackFideId "2069890"]
[WhiteElo "2112"]
[BlackElo "2149"]
[Result "0-1"]
[Round "06"]
[TimeControl "180+1"]
[Date "2022.02.23"]
[WhiteClock "0:00:05"]
[BlackClock "0:00:28"]

1. Nf3 {[%clk 0:03:00]}  g6 {[%clk 0:02:59]} 2. e4 {[%clk 0:02:59]}  Bg7 {[%clk 0:03:00]} 3. d4 {[%clk 0:03:00]}  d6 {[%clk 0:02:58]} 4. c3 {[%clk 0:02:48]}  Nf6 {[%clk 0:02:57]} 5. Bd3 {[%clk 0:02:48]}  O-O {[%clk 0:02:56]} 6. O-O {[%clk 0:02:47]}  Nbd7 {[%clk 0:02:56]} 7. Re1 {[%clk 0:02:46]}  e5 {[%clk 0:02:56]} 8. Nbd2 {[%clk 0:02:44]}  c6 {[%clk 0:02:55]} 9. b4 {[%clk 0:02:43]}  Qc7 {[%clk 0:02:56]} 10. a4 {[%clk 0:02:42]}  Re8 {[%clk 0:02:55]} 11. a5 {[%clk 0:02:40]}  d5 {[%clk 0:02:52]} 12. exd5 {[%clk 0:02:35]}  cxd5 {[%clk 0:02:53]} 13. dxe5 {[%clk 0:02:33]}  Nxe5 {[%clk 0:02:53]} 14. Nxe5 {[%clk 0:02:33]}  Rxe5 {[%clk 0:02:54]} 15. Nf3 {[%clk 0:02:26]}  Rxe1+ {[%clk 0:02:49]} 16. Qxe1 {[%clk 0:02:27]}  Bg4 {[%clk 0:02:49]} 17. Bd2 {[%clk 0:02:12]}  Re8 {[%clk 0:02:45]} 18. Qf1 {[%clk 0:02:11]}  Ne4 {[%clk 0:02:43]} 19. Bxe4 {[%clk 0:02:08]}  dxe4 {[%clk 0:02:41]} 20. Nd4 {[%clk 0:02:08]}  Qe5 {[%clk 0:02:31]} 21. Be3 {[%clk 0:02:05]}  h5 {[%clk 0:02:30]} 22. h3 {[%clk 0:01:58]}  Bd7 {[%clk 0:02:29]} 23. c4 {[%clk 0:01:57]}  f5 {[%clk 0:02:23]} 24. g3 {[%clk 0:01:56]}  Qd6 {[%clk 0:02:13]} 25. c5 {[%clk 0:01:50]}  Qf6 {[%clk 0:02:08]} 26. h4 {[%clk 0:01:50]}  a6 {[%clk 0:02:04]} 27. Rd1 {[%clk 0:01:47]}  Ba4 {[%clk 0:02:04]} 28. Rd2 {[%clk 0:01:47]}  Kh7 {[%clk 0:02:03]} 29. Qa1 {[%clk 0:01:37]}  Bd7 {[%clk 0:01:58]} 30. Qd1 {[%clk 0:01:36]}  f4 {[%clk 0:01:54]} 31. Bxf4 {[%clk 0:01:35]}  Bg4 {[%clk 0:01:54]} 32. Qe1 {[%clk 0:01:30]}  Rd8 {[%clk 0:01:52]} 33. Bg5 {[%clk 0:01:20]}  Qxd4 {[%clk 0:01:51]} 34. Bxd8 {[%clk 0:01:19]}  Qxb4 {[%clk 0:01:49]} 35. Qc1 {[%clk 0:00:52]}  e3 {[%clk 0:01:37]} 36. fxe3 {[%clk 0:00:50]}  Qe4 {[%clk 0:01:37]} 37. Bg5 {[%clk 0:00:45]}  Be5 {[%clk 0:01:36]} 38. Bf4 {[%clk 0:00:41]}  Bg7 {[%clk 0:01:36]} 39. Rd8 {[%clk 0:00:28]}  Bh3 {[%clk 0:01:29]} 40. Qd2 {[%clk 0:00:26]}  Qf3 {[%clk 0:01:22]} 41. Qf2 {[%clk 0:00:25]}  Qc6 {[%clk 0:01:19]} 42. Kh2 {[%clk 0:00:21]}  Bg4 {[%clk 0:01:15]} 43. Bd6 {[%clk 0:00:18]}  Be6 {[%clk 0:01:07]} 44. Rf8 {[%clk 0:00:13]}  Bxf8 {[%clk 0:01:00]} 45. Qxf8 {[%clk 0:00:14]}  Qd5 {[%clk 0:00:59]} 46. Qe7+ {[%clk 0:00:14]}  Kg8 {[%clk 0:00:53]} 47. Qd8+ {[%clk 0:00:13]}  Kh7 {[%clk 0:00:54]} 48. Qc7+ {[%clk 0:00:13]}  Bf7 {[%clk 0:00:50]} 49. e4 {[%clk 0:00:12]}  Qd2+ {[%clk 0:00:48]} 50. Kh3 {[%clk 0:00:12]}  Qf2 {[%clk 0:00:44]} 51. Bf4 {[%clk 0:00:10]}  Qf1+ {[%clk 0:00:41]} 52. Kh2 {[%clk 0:00:10]}  Qf2+ {[%clk 0:00:41]} 53. Kh1 {[%clk 0:00:10]}  Kg8 {[%clk 0:00:36]} 54. Qd8+ {[%clk 0:00:09]}  Kh7 {[%clk 0:00:34]} 55. Qd2 {[%clk 0:00:09]}  Qf3+ {[%clk 0:00:30]} 56. Kh2 {[%clk 0:00:06]}  Qxe4 {[%clk 0:00:29]} 57. Qb2 {[%clk 0:00:05]}  Bd5 {[%clk 0:00:28]} 0-1


[Site "https://www.chess.com"]

[Event "Titled Tuesday Blitz February 22 Late 2022"]
[White "Baskin, Robert"]
[Black "Garriga Cazorla, Pere"]
[WhiteFideId "24662402"]
[BlackFideId "32011601"]
[WhiteElo "2488"]
[BlackElo "2458"]
[Result "0-1"]
[Round "06"]
[TimeControl "180+1"]
[Date "2022.02.23"]
[WhiteClock "0:00:08"]
[BlackClock "0:01:08"]

1. d4 {[%clk 0:03:00]}  Nf6 {[%clk 0:02:57]} 2. c4 {[%clk 0:03:00]}  e6 {[%clk 0:02:56]} 3. Nf3 {[%clk 0:03:00]}  c5 {[%clk 0:02:56]} 4. Nc3 {[%clk 0:02:51]}  cxd4 {[%clk 0:02:54]} 5. Nxd4 {[%clk 0:02:52]}  Nc6 {[%clk 0:02:55]} 6. g3 {[%clk 0:02:41]}  Qb6 {[%clk 0:02:54]} 7. Ndb5 {[%clk 0:02:38]}  Ne5 {[%clk 0:02:53]} 8. Bf4 {[%clk 0:02:36]}  Nfg4 {[%clk 0:02:41]} 9. e3 {[%clk 0:02:34]}  a6 {[%clk 0:02:41]} 10. h3 {[%clk 0:02:33]}  axb5 {[%clk 0:02:40]} 11. hxg4 {[%clk 0:02:33]}  Nxc4 {[%clk 0:02:40]} 12. Rc1 {[%clk 0:02:26]}  d5 {[%clk 0:02:32]} 13. g5 {[%clk 0:02:16]}  Bd7 {[%clk 0:02:30]} 14. b3 {[%clk 0:02:09]}  Bb4 {[%clk 0:02:25]} 15. Bd3 {[%clk 0:02:00]}  e5 {[%clk 0:02:12]} 16. bxc4 {[%clk 0:01:56]}  exf4 {[%clk 0:02:11]} 17. gxf4 {[%clk 0:01:52]}  Ra3 {[%clk 0:02:07]} 18. Kf1 {[%clk 0:01:45]}  Rxc3 {[%clk 0:02:04]} 19. Rxc3 {[%clk 0:01:44]}  Bxc3 {[%clk 0:02:04]} 20. cxd5 {[%clk 0:01:45]}  Qc5 {[%clk 0:01:58]} 21. Be4 {[%clk 0:01:38]}  g6 {[%clk 0:01:55]} 22. Kg2 {[%clk 0:01:37]}  b4 {[%clk 0:01:54]} 23. Rh4 {[%clk 0:01:22]}  Qc4 {[%clk 0:01:47]} 24. Bf3 {[%clk 0:01:18]}  Qxa2 {[%clk 0:01:47]} 25. Qh1 {[%clk 0:01:16]}  Qa1 {[%clk 0:01:44]} 26. Qh2 {[%clk 0:01:14]}  Bb5 {[%clk 0:01:44]} 27. Rxh7 {[%clk 0:00:23]}  Rxh7 {[%clk 0:01:41]} 28. Qxh7 {[%clk 0:00:24]}  Qf1+ {[%clk 0:01:41]} 29. Kg3 {[%clk 0:00:24]}  Kf8 {[%clk 0:01:25]} 30. Qh2 {[%clk 0:00:17]}  b3 {[%clk 0:01:23]} 31. e4 {[%clk 0:00:16]}  Bg7 {[%clk 0:01:19]} 32. Kh4 {[%clk 0:00:13]}  b2 {[%clk 0:01:17]} 33. f5 {[%clk 0:00:14]}  b1=Q {[%clk 0:01:09]} 34. Qb8+ {[%clk 0:00:13]}  Be8 {[%clk 0:01:09]} 35. f6 {[%clk 0:00:08]}  Qxf2+ {[%clk 0:01:08]} 36. Kg4 {[%clk 0:00:08]}  Qbg1+ {[%clk 0:01:08]} 0-1


[Site "https://www.chess.com"]

[Event "Titled Tuesday Blitz February 22 Late 2022"]
[White "Bryakin, Mikhail"]
[Black "Rosen, Eric"]
[WhiteFideId "4165314"]
[BlackFideId "2032562"]
[WhiteElo "2421"]
[BlackElo "2362"]
[Result "1-0"]
[Round "06"]
[TimeControl "180+1"]
[Date "2022.02.22"]
[WhiteClock "0:00:40"]
[BlackClock "0:00:01"]

1. e4 {[%clk 0:03:00]}  c5 {[%clk 0:02:54]} 2. c3 {[%clk 0:02:59]}  d5 {[%clk 0:02:53]} 3. exd5 {[%clk 0:02:59]}  Qxd5 {[%clk 0:02:53]} 4. d4 {[%clk 0:02:59]}  Nf6 {[%clk 0:02:51]} 5. Nf3 {[%clk 0:03:00]}  e6 {[%clk 0:02:52]} 6. Be3 {[%clk 0:02:58]}  cxd4 {[%clk 0:02:50]} 7. Qxd4 {[%clk 0:02:56]}  Qxd4 {[%clk 0:02:50]} 8. Nxd4 {[%clk 0:02:55]}  Be7 {[%clk 0:02:47]} 9. g3 {[%clk 0:02:51]}  Nd5 {[%clk 0:02:27]} 10. Bd2 {[%clk 0:02:49]}  e5 {[%clk 0:02:27]} 11. Nb3 {[%clk 0:02:46]}  Be6 {[%clk 0:02:25]} 12. Bg2 {[%clk 0:02:46]}  Nc6 {[%clk 0:02:25]} 13. Nc1 {[%clk 0:02:32]}  O-O {[%clk 0:02:22]} 14. a3 {[%clk 0:02:31]}  Nb6 {[%clk 0:02:20]} 15. b3 {[%clk 0:02:27]}  Rfd8 {[%clk 0:02:13]} 16. a4 {[%clk 0:02:25]}  a5 {[%clk 0:02:07]} 17. Na3 {[%clk 0:02:24]}  Rac8 {[%clk 0:02:06]} 18. Nb5 {[%clk 0:02:24]}  Nd7 {[%clk 0:01:53]} 19. Rb1 {[%clk 0:02:13]}  Nc5 {[%clk 0:01:51]} 20. Ke2 {[%clk 0:02:03]}  Bg4+ {[%clk 0:01:45]} 21. f3 {[%clk 0:01:59]}  Bf5 {[%clk 0:01:46]} 22. Rb2 {[%clk 0:01:59]}  h5 {[%clk 0:01:36]} 23. h4 {[%clk 0:01:57]}  Nd3 {[%clk 0:01:31]} 24. Nxd3 {[%clk 0:01:51]}  Bxd3+ {[%clk 0:01:32]} 25. Kf2 {[%clk 0:01:52]}  Rd5 {[%clk 0:01:01]} 26. c4 {[%clk 0:01:47]}  Rd7 {[%clk 0:00:50]} 27. Be3 {[%clk 0:01:48]}  Nb4 {[%clk 0:00:28]} 28. Rd1 {[%clk 0:01:48]}  Bf5 {[%clk 0:00:25]} 29. Rxd7 {[%clk 0:01:44]}  Bxd7 {[%clk 0:00:26]} 30. Rd2 {[%clk 0:01:44]}  Bc6 {[%clk 0:00:27]} 31. Bh3 {[%clk 0:01:43]}  Rd8 {[%clk 0:00:26]} 32. Rxd8+ {[%clk 0:01:43]}  Bxd8 {[%clk 0:00:27]} 33. Bc8 {[%clk 0:01:40]}  Kf8 {[%clk 0:00:20]} 34. f4 {[%clk 0:01:36]}  exf4 {[%clk 0:00:19]} 35. Bxf4 {[%clk 0:01:36]}  f6 {[%clk 0:00:17]} 36. Bd6+ {[%clk 0:01:33]}  Kf7 {[%clk 0:00:17]} 37. Ke3 {[%clk 0:01:28]}  g5 {[%clk 0:00:15]} 38. c5 {[%clk 0:01:23]}  Nd5+ {[%clk 0:00:14]} 39. Kd4 {[%clk 0:01:23]}  gxh4 {[%clk 0:00:13]} 40. gxh4 {[%clk 0:01:23]}  f5 {[%clk 0:00:11]} 41. Bxf5 {[%clk 0:01:16]}  Bxh4 {[%clk 0:00:10]} 42. Na7 {[%clk 0:01:14]}  Bf6+ {[%clk 0:00:09]} 43. Kd3 {[%clk 0:01:14]}  Nb4+ {[%clk 0:00:06]} 44. Ke3 {[%clk 0:01:14]}  Bd5 {[%clk 0:00:06]} 45. Bc8 {[%clk 0:01:09]}  h4 {[%clk 0:00:06]} 46. Nb5 {[%clk 0:01:00]}  Bxb3 {[%clk 0:00:03]} 47. Bxb7 {[%clk 0:00:56]}  Bxa4 {[%clk 0:00:03]} 48. Nd4 {[%clk 0:00:48]}  Bxd4+ {[%clk 0:00:02]} 49. Kxd4 {[%clk 0:00:49]}  Bc6 {[%clk 0:00:02]} 50. Bc8 {[%clk 0:00:46]}  a4 {[%clk 0:00:02]} 51. Kc4 {[%clk 0:00:45]}  Nd5 {[%clk 0:00:02]} 52. Bh3 {[%clk 0:00:44]}  Ne3+ {[%clk 0:00:02]} 53. Kb4 {[%clk 0:00:43]}  Bg2 {[%clk 0:00:02]} 54. Bd7 {[%clk 0:00:40]}  h3 {[%clk 0:00:01]} 55. c6 {[%clk 0:00:40]} 1-0


[Site "https://www.chess.com"]

[Event "Titled Tuesday Blitz February 22 Late 2022"]
[White "Carbone, Diego"]
[Black "Boros, Denes"]
[WhiteFideId "3002179"]
[BlackFideId "722340"]
[WhiteElo "2199"]
[BlackElo "2464"]
[Result "0-1"]
[Round "06"]
[TimeControl "180+1"]
[Date "2022.02.22"]
[WhiteClock "0:00:03"]
[BlackClock "0:01:00"]

1. d4 {[%clk 0:03:00]}  Nf6 {[%clk 0:03:00]} 2. c4 {[%clk 0:02:59]}  e6 {[%clk 0:02:59]} 3. g3 {[%clk 0:03:00]}  Bb4+ {[%clk 0:02:59]} 4. Bd2 {[%clk 0:03:00]}  Be7 {[%clk 0:02:58]} 5. Bg2 {[%clk 0:02:59]}  d5 {[%clk 0:02:59]} 6. Nf3 {[%clk 0:03:00]}  Ne4 {[%clk 0:02:59]} 7. Qc2 {[%clk 0:02:59]}  Nc6 {[%clk 0:02:58]} 8. O-O {[%clk 0:02:54]}  f5 {[%clk 0:02:57]} 9. Bf4 {[%clk 0:02:48]}  g5 {[%clk 0:02:52]} 10. Be5 {[%clk 0:02:46]}  Rg8 {[%clk 0:02:49]} 11. Nc3 {[%clk 0:02:26]}  g4 {[%clk 0:02:47]} 12. Ne1 {[%clk 0:02:19]}  Nxe5 {[%clk 0:02:44]} 13. dxe5 {[%clk 0:02:13]}  c6 {[%clk 0:02:41]} 14. Nd3 {[%clk 0:02:09]}  Bg5 {[%clk 0:02:31]} 15. Rad1 {[%clk 0:01:45]}  Qe7 {[%clk 0:02:29]} 16. f3 {[%clk 0:01:11]}  Be3+ {[%clk 0:02:28]} 17. Kh1 {[%clk 0:01:10]}  Nxg3+ {[%clk 0:01:52]} 18. hxg3 {[%clk 0:01:10]}  Qg5 {[%clk 0:01:52]} 19. Nf2 {[%clk 0:00:55]}  Qh5+ {[%clk 0:01:38]} 20. Kg1 {[%clk 0:00:54]}  f4 {[%clk 0:01:36]} 21. fxg4 {[%clk 0:00:48]}  Rxg4 {[%clk 0:01:36]} 22. Ne4 {[%clk 0:00:22]}  dxe4 {[%clk 0:01:16]} 23. Qxe4 {[%clk 0:00:21]}  fxg3 {[%clk 0:01:08]} 24. Rd8+ {[%clk 0:00:20]}  Ke7 {[%clk 0:01:00]} 25. Qxg4 {[%clk 0:00:03]}  Qh2# {[%clk 0:01:00]} 0-1


[Site "https://www.chess.com"]

[Event "Titled Tuesday Blitz February 22 Late 2022"]
[White "Carlsson, Ludvig"]
[Black "Ansh M Shah"]
[WhiteFideId "1727010"]
[BlackFideId "25033379"]
[WhiteElo "2178"]
[BlackElo "1819"]
[Result "1-0"]
[Round "06"]
[TimeControl "180+1"]
[Date "2022.02.23"]
[WhiteClock "0:00:09"]
[BlackClock "0:00:18"]

1. d4 {[%clk 0:03:00]}  Nf6 {[%clk 0:02:56]} 2. c4 {[%clk 0:03:00]}  e6 {[%clk 0:02:56]} 3. Nc3 {[%clk 0:03:00]}  d5 {[%clk 0:02:56]} 4. Bg5 {[%clk 0:02:59]}  Be7 {[%clk 0:02:56]} 5. e3 {[%clk 0:02:59]}  O-O {[%clk 0:02:57]} 6. Nf3 {[%clk 0:02:59]}  b6 {[%clk 0:02:57]} 7. cxd5 {[%clk 0:02:59]}  Nxd5 {[%clk 0:02:57]} 8. Bxe7 {[%clk 0:02:59]}  Qxe7 {[%clk 0:02:58]} 9. Nxd5 {[%clk 0:02:58]}  exd5 {[%clk 0:02:59]} 10. Rc1 {[%clk 0:02:48]}  Bb7 {[%clk 0:02:57]} 11. Bd3 {[%clk 0:02:48]}  Rc8 {[%clk 0:02:55]} 12. Bf5 {[%clk 0:02:46]}  Rd8 {[%clk 0:02:53]} 13. O-O {[%clk 0:02:38]}  g6 {[%clk 0:02:52]} 14. Bd3 {[%clk 0:02:37]}  Rc8 {[%clk 0:02:51]} 15. Qa4 {[%clk 0:02:29]}  a6 {[%clk 0:02:49]} 16. Rfd1 {[%clk 0:02:29]}  Nd7 {[%clk 0:02:47]} 17. Bf1 {[%clk 0:02:25]}  b5 {[%clk 0:02:46]} 18. Qc2 {[%clk 0:02:23]}  c5 {[%clk 0:02:46]} 19. dxc5 {[%clk 0:02:23]}  Rxc5 {[%clk 0:02:46]} 20. Qd2 {[%clk 0:02:22]}  Rac8 {[%clk 0:02:44]} 21. Nd4 {[%clk 0:02:22]}  Rxc1 {[%clk 0:02:43]} 22. Rxc1 {[%clk 0:02:22]}  Rxc1 {[%clk 0:02:43]} 23. Qxc1 {[%clk 0:02:23]}  Qc5 {[%clk 0:02:43]} 24. Qxc5 {[%clk 0:02:23]}  Nxc5 {[%clk 0:02:44]} 25. b3 {[%clk 0:02:13]}  Ne6 {[%clk 0:02:42]} 26. b4 {[%clk 0:01:56]}  Kf8 {[%clk 0:02:34]} 27. Nb3 {[%clk 0:01:52]}  Ke7 {[%clk 0:02:30]} 28. g3 {[%clk 0:01:51]}  Kd6 {[%clk 0:02:29]} 29. Bh3 {[%clk 0:01:51]}  Ng5 {[%clk 0:02:24]} 30. Bg2 {[%clk 0:01:51]}  Ne6 {[%clk 0:02:23]} 31. h4 {[%clk 0:01:50]}  Bc6 {[%clk 0:02:17]} 32. Bh3 {[%clk 0:01:49]}  f5 {[%clk 0:02:13]} 33. Kf1 {[%clk 0:01:42]}  Ke5 {[%clk 0:02:10]} 34. Bg2 {[%clk 0:01:38]}  Be8 {[%clk 0:02:00]} 35. Ke2 {[%clk 0:01:38]}  Bc6 {[%clk 0:01:43]} 36. Kd3 {[%clk 0:01:38]}  Bb7 {[%clk 0:01:41]} 37. Bf3 {[%clk 0:00:50]}  Bc6 {[%clk 0:01:24]} 38. Bh1 {[%clk 0:00:49]}  Bb7 {[%clk 0:01:17]} 39. Bg2 {[%clk 0:00:49]}  Bc6 {[%clk 0:01:14]} 40. Bf1 {[%clk 0:00:49]}  Be8 {[%clk 0:01:06]} 41. Be2 {[%clk 0:00:49]}  Bc6 {[%clk 0:00:55]} 42. f4+ {[%clk 0:00:40]}  Kd6 {[%clk 0:00:55]} 43. g4 {[%clk 0:00:40]}  Be8 {[%clk 0:00:51]} 44. gxf5 {[%clk 0:00:21]}  gxf5 {[%clk 0:00:52]} 45. Nd4 {[%clk 0:00:22]}  Nxd4 {[%clk 0:00:43]} 46. Kxd4 {[%clk 0:00:23]}  h6 {[%clk 0:00:36]} 47. Bd3 {[%clk 0:00:20]}  Bd7 {[%clk 0:00:36]} 48. Bc2 {[%clk 0:00:20]}  Bc8 {[%clk 0:00:36]} 49. Bb3 {[%clk 0:00:21]}  Be6 {[%clk 0:00:36]} 50. Bd1 {[%clk 0:00:22]}  Bc8 {[%clk 0:00:35]} 51. Bh5 {[%clk 0:00:21]}  Be6 {[%clk 0:00:29]} 52. Be8 {[%clk 0:00:21]}  Bc8 {[%clk 0:00:29]} 53. Bf7 {[%clk 0:00:19]}  Bb7 {[%clk 0:00:28]} 54. Bg8 {[%clk 0:00:19]}  Bc6 {[%clk 0:00:25]} 55. Bh7 {[%clk 0:00:18]}  Bd7 {[%clk 0:00:26]} 56. Bg6 {[%clk 0:00:19]}  Be6 {[%clk 0:00:20]} 57. Be8 {[%clk 0:00:18]}  Bc8 {[%clk 0:00:20]} 58. a3 {[%clk 0:00:17]}  Be6 {[%clk 0:00:18]} 59. Bh5 {[%clk 0:00:12]}  Bc8 {[%clk 0:00:18]} 60. Bf3 {[%clk 0:00:12]}  Be6 {[%clk 0:00:18]} 61. Be2 {[%clk 0:00:13]}  Bd7 {[%clk 0:00:18]} 62. Bd3 {[%clk 0:00:13]}  Bc8 {[%clk 0:00:18]} 63. Bc2 {[%clk 0:00:14]}  Bd7 {[%clk 0:00:18]} 64. Bd1 {[%clk 0:00:14]}  Bc8 {[%clk 0:00:17]} 65. a4 {[%clk 0:00:15]}  bxa4 {[%clk 0:00:16]} 66. Bxa4 {[%clk 0:00:15]}  Be6 {[%clk 0:00:14]} 67. Be8 {[%clk 0:00:15]}  Bc8 {[%clk 0:00:14]} 68. Bf7 {[%clk 0:00:14]}  Bb7 {[%clk 0:00:13]} 69. Bg6 {[%clk 0:00:11]}  Bc8 {[%clk 0:00:13]} 70. Be8 {[%clk 0:00:09]}  Be6 {[%clk 0:00:13]} 71. Ba4 {[%clk 0:00:09]}  Bc8 {[%clk 0:00:11]} 72. Bc2 {[%clk 0:00:10]}  Be6 {[%clk 0:00:12]} 73. Bb1 {[%clk 0:00:09]}  Bd7 {[%clk 0:00:12]} 74. Bd3 {[%clk 0:00:09]}  Bc8 {[%clk 0:00:12]} 75. h5 {[%clk 0:00:06]}  Bd7 {[%clk 0:00:07]} 76. Bxa6 {[%clk 0:00:06]}  Be8 {[%clk 0:00:08]} 77. Be2 {[%clk 0:00:06]}  Kc6 {[%clk 0:00:09]} 78. Ke5 {[%clk 0:00:05]}  Kb6 {[%clk 0:00:09]} 79. Kxf5 {[%clk 0:00:06]}  Bb5 {[%clk 0:00:10]} 80. Bxb5 {[%clk 0:00:05]}  Kxb5 {[%clk 0:00:11]} 81. Ke5 {[%clk 0:00:06]}  Kxb4 {[%clk 0:00:12]} 82. Kxd5 {[%clk 0:00:06]}  Kc3 {[%clk 0:00:12]} 83. f5 {[%clk 0:00:07]}  Kd3 {[%clk 0:00:13]} 84. f6 {[%clk 0:00:08]}  Kxe3 {[%clk 0:00:14]} 85. f7 {[%clk 0:00:09]}  Kf4 {[%clk 0:00:15]} 86. f8=Q+ {[%clk 0:00:09]}  Kg5 {[%clk 0:00:16]} 87. Qf3 {[%clk 0:00:08]}  Kh4 {[%clk 0:00:16]} 88. Qf4+ {[%clk 0:00:08]}  Kxh5 {[%clk 0:00:16]} 89. Qf5+ {[%clk 0:00:08]}  Kh4 {[%clk 0:00:17]} 90. Qg6 {[%clk 0:00:08]}  h5 {[%clk 0:00:18]} 91. Ke4 {[%clk 0:00:09]}  Kh3 {[%clk 0:00:18]} 92. Kf3 {[%clk 0:00:09]}  Kh2 {[%clk 0:00:18]} 93. Qg2# {[%clk 0:00:09]} 1-0


[Site "https://www.chess.com"]

[Event "Titled Tuesday Blitz February 22 Late 2022"]
[White "Clawitter, Craig"]
[Black "Buscar, Michael"]
[WhiteFideId "2023105"]
[BlackFideId "2603616"]
[WhiteElo "2214"]
[BlackElo "2010"]
[Result "0-1"]
[Round "06"]
[TimeControl "180+1"]
[Date "2022.02.23"]
[WhiteClock "0:00:02"]
[BlackClock "0:01:03"]

1. e4 {[%clk 0:03:00]}  e5 {[%clk 0:02:54]} 2. Nc3 {[%clk 0:02:58]}  Bc5 {[%clk 0:02:52]} 3. f4 {[%clk 0:02:58]}  exf4 {[%clk 0:02:50]} 4. Nf3 {[%clk 0:02:57]}  Ne7 {[%clk 0:02:43]} 5. d4 {[%clk 0:02:57]}  Bb6 {[%clk 0:02:44]} 6. Bxf4 {[%clk 0:02:55]}  Ng6 {[%clk 0:02:44]} 7. Bg3 {[%clk 0:02:54]}  d6 {[%clk 0:02:44]} 8. Bc4 {[%clk 0:02:43]}  Nc6 {[%clk 0:02:38]} 9. O-O {[%clk 0:02:41]}  O-O {[%clk 0:02:37]} 10. Nd5 {[%clk 0:02:34]}  Bg4 {[%clk 0:02:26]} 11. c3 {[%clk 0:02:32]}  Nce7 {[%clk 0:02:15]} 12. Ne3 {[%clk 0:02:23]}  Be6 {[%clk 0:02:13]} 13. h4 {[%clk 0:02:09]}  Bxc4 {[%clk 0:02:02]} 14. Nxc4 {[%clk 0:02:09]}  Re8 {[%clk 0:01:57]} 15. h5 {[%clk 0:02:06]}  Nf8 {[%clk 0:01:57]} 16. h6 {[%clk 0:02:02]}  g6 {[%clk 0:01:52]} 17. Ng5 {[%clk 0:01:39]}  f5 {[%clk 0:01:42]} 18. Bh4 {[%clk 0:01:04]}  d5 {[%clk 0:01:32]} 19. Ne5 {[%clk 0:00:43]}  dxe4 {[%clk 0:01:28]} 20. Ngf7 {[%clk 0:00:18]}  Qd5 {[%clk 0:01:15]} 21. Qd2 {[%clk 0:00:17]}  Nc6 {[%clk 0:01:11]} 22. Qg5 {[%clk 0:00:14]}  Nxe5 {[%clk 0:01:07]} 23. Nxe5 {[%clk 0:00:10]}  Qxe5 {[%clk 0:01:07]} 24. Rf2 {[%clk 0:00:04]}  Qe6 {[%clk 0:01:07]} 25. Raf1 {[%clk 0:00:03]}  c6 {[%clk 0:01:07]} 26. Rxf5 {[%clk 0:00:03]}  Bd8 {[%clk 0:01:05]} 27. Qg3 {[%clk 0:00:02]}  Bxh4 {[%clk 0:01:03]} 0-1


[Site "https://www.chess.com"]